[Event "Titled Tuesday Blitz July 25 Early 2023"]
[White "Nagy, Gabor"]
[Black "Oleksiyenko, Mykhaylo"]
[WhiteFideId "737119"]
[BlackFideId "4152417"]
[WhiteElo "2787"]
[BlackElo "2692"]
[Result "1/2-1/2"]
[Round "10"]
[TimeControl "180+2"]
[Date "2023.07.25"]
[WhiteClock "0:00:46"]
[BlackClock "0:00:15"]
[Board "31"]

1. d4 {[%clk 0:03:00]}  d5 {[%clk 0:02:40]} 2. Nc3 {[%clk 0:03:01]}  Nf6 {[%clk 0:02:40]} 3. Bf4 {[%clk 0:03:00]}  e6 {[%clk 0:02:39]} 4. Nb5 {[%clk 0:02:59]}  Bb4+ {[%clk 0:02:40]} 5. c3 {[%clk 0:02:59]}  Ba5 {[%clk 0:02:40]} 6. e3 {[%clk 0:02:58]}  a6 {[%clk 0:02:38]} 7. Na3 {[%clk 0:02:57]}  c6 {[%clk 0:02:36]} 8. Nf3 {[%clk 0:02:57]}  Bc7 {[%clk 0:02:35]} 9. Bd3 {[%clk 0:02:58]}  Nbd7 {[%clk 0:02:34]} 10. O-O {[%clk 0:02:58]}  c5 {[%clk 0:02:33]} 11. c4 {[%clk 0:02:55]}  Bxf4 {[%clk 0:02:29]} 12. exf4 {[%clk 0:02:54]}  O-O {[%clk 0:02:30]} 13. Rc1 {[%clk 0:02:52]}  dxc4 {[%clk 0:02:14]} 14. Nxc4 {[%clk 0:02:50]}  b5 {[%clk 0:02:15]} 15. Nce5 {[%clk 0:02:48]}  c4 {[%clk 0:02:15]} 16. Bb1 {[%clk 0:02:46]}  Bb7 {[%clk 0:02:14]} 17. Re1 {[%clk 0:02:42]}  Rc8 {[%clk 0:02:12]} 18. Ng5 {[%clk 0:02:38]}  h6 {[%clk 0:02:06]} 19. Ngf3 {[%clk 0:02:26]}  Nb6 {[%clk 0:02:06]} 20. f5 {[%clk 0:02:07]}  exf5 {[%clk 0:02:00]} 21. Bxf5 {[%clk 0:02:08]}  Rc7 {[%clk 0:02:00]} 22. b3 {[%clk 0:02:04]}  cxb3 {[%clk 0:01:58]} 23. Rxc7 {[%clk 0:02:03]}  Qxc7 {[%clk 0:01:59]} 24. axb3 {[%clk 0:02:03]}  Rd8 {[%clk 0:01:57]} 25. h3 {[%clk 0:01:59]}  Nbd5 {[%clk 0:01:56]} 26. Qd2 {[%clk 0:01:56]}  Qc3 {[%clk 0:01:54]} 27. Rc1 {[%clk 0:01:48]}  Qxd2 {[%clk 0:01:49]} 28. Nxd2 {[%clk 0:01:47]}  g6 {[%clk 0:01:49]} 29. Be4 {[%clk 0:01:44]}  Nf4 {[%clk 0:01:33]} 30. Re1 {[%clk 0:01:19]}  Nxe4 {[%clk 0:01:22]} 31. Nxe4 {[%clk 0:01:20]}  Bxe4 {[%clk 0:01:16]} 32. Rxe4 {[%clk 0:01:21]}  Rxd4 {[%clk 0:01:15]} 33. Re3 {[%clk 0:01:21]}  a5 {[%clk 0:01:10]} 34. Kh2 {[%clk 0:01:15]}  Nd5 {[%clk 0:01:08]} 35. Rf3 {[%clk 0:01:13]}  Rf4 {[%clk 0:01:01]} 36. Rd3 {[%clk 0:01:11]}  Nb4 {[%clk 0:01:00]} 37. Rd8+ {[%clk 0:01:12]}  Kg7 {[%clk 0:01:00]} 38. f3 {[%clk 0:01:11]}  Rf5 {[%clk 0:00:58]} 39. Ng4 {[%clk 0:01:07]}  Rd5 {[%clk 0:00:55]} 40. Ra8 {[%clk 0:01:07]}  Nc6 {[%clk 0:00:51]} 41. Nf2 {[%clk 0:01:07]}  f5 {[%clk 0:00:48]} 42. Ra6 {[%clk 0:01:04]}  Rc5 {[%clk 0:00:42]} 43. Nd3 {[%clk 0:01:02]}  Rc3 {[%clk 0:00:42]} 44. Nf4 {[%clk 0:01:03]}  g5 {[%clk 0:00:40]} 45. Ne6+ {[%clk 0:00:59]}  Kg8 {[%clk 0:00:22]} 46. h4 {[%clk 0:00:58]}  gxh4 {[%clk 0:00:19]} 47. Kh3 {[%clk 0:00:58]}  b4 {[%clk 0:00:18]} 48. Kxh4 {[%clk 0:00:57]}  Ne7 {[%clk 0:00:17]} 49. Rxa5 {[%clk 0:00:54]}  Rxb3 {[%clk 0:00:17]} 50. Nd4 {[%clk 0:00:53]}  Rb2 {[%clk 0:00:17]} 51. Kg3 {[%clk 0:00:51]}  b3 {[%clk 0:00:16]} 52. Nxf5 {[%clk 0:00:51]}  Nxf5+ {[%clk 0:00:15]} 53. Rxf5 {[%clk 0:00:52]}  Rc2 {[%clk 0:00:14]} 54. Rb5 {[%clk 0:00:52]}  b2 {[%clk 0:00:15]} 55. Kh3 {[%clk 0:00:49]}  Kf7 {[%clk 0:00:15]} 56. g4 {[%clk 0:00:49]}  Ke6 {[%clk 0:00:15]} 57. Kh4 {[%clk 0:00:46]}  Rh2+ {[%clk 0:00:14]} 58. Kg3 {[%clk 0:00:46]}  Rc2 {[%clk 0:00:15]} 59. Kh4 {[%clk 0:00:45]}  Rh2+ {[%clk 0:00:15]} 60. Kg3 {[%clk 0:00:45]}  Rc2 {[%clk 0:00:15]} 61. Kh4 {[%clk 0:00:46]} 1/2-1/2


[Site "https://www.chess.com"]

[Event "Titled Tuesday Blitz July 25 Early 2023"]
[White "Seemann, Jakub"]
[Black "Tsaruk, Maksim"]
[WhiteFideId "21874697"]
[BlackFideId "13511173"]
[WhiteElo "2670"]
[BlackElo "2783"]
[Result "0-1"]
[Round "10"]
[TimeControl "180+2"]
[Date "2023.07.25"]
[WhiteClock "0:00:00"]
[BlackClock "0:00:04"]
[Board "32"]

1. e4 {[%clk 0:03:00]}  d5 {[%clk 0:02:59]} 2. exd5 {[%clk 0:03:00]}  Qxd5 {[%clk 0:02:59]} 3. Nc3 {[%clk 0:03:01]}  Qa5 {[%clk 0:03:00]} 4. Nf3 {[%clk 0:03:01]}  Nf6 {[%clk 0:02:59]} 5. g3 {[%clk 0:03:01]}  Bg4 {[%clk 0:02:59]} 6. Bg2 {[%clk 0:03:02]}  Nc6 {[%clk 0:03:00]} 7. O-O {[%clk 0:03:02]}  e5 {[%clk 0:02:55]} 8. h3 {[%clk 0:03:01]}  Bxf3 {[%clk 0:02:52]} 9. Bxf3 {[%clk 0:03:01]}  Bc5 {[%clk 0:02:49]} 10. a3 {[%clk 0:03:00]}  O-O {[%clk 0:02:48]} 11. d3 {[%clk 0:03:00]}  Bd4 {[%clk 0:02:29]} 12. Bg5 {[%clk 0:02:52]}  e4 {[%clk 0:02:14]} 13. Bxf6 {[%clk 0:02:37]}  exf3 {[%clk 0:02:12]} 14. Bxd4 {[%clk 0:02:32]}  Nxd4 {[%clk 0:02:13]} 15. Ne4 {[%clk 0:02:30]}  Rae8 {[%clk 0:02:07]} 16. Kh2 {[%clk 0:02:22]}  Qh5 {[%clk 0:01:33]} 17. c3 {[%clk 0:02:11]}  Ne2 {[%clk 0:01:30]} 18. Qd2 {[%clk 0:01:53]}  Re5 {[%clk 0:00:59]} 19. Rae1 {[%clk 0:01:21]}  Rfe8 {[%clk 0:00:58]} 20. g4 {[%clk 0:01:11]}  Qh4 {[%clk 0:00:53]} 21. Rxe2 {[%clk 0:01:11]}  fxe2 {[%clk 0:00:51]} 22. Qxe2 {[%clk 0:01:12]}  f5 {[%clk 0:00:47]} 23. gxf5 {[%clk 0:01:13]}  Qf4+ {[%clk 0:00:47]} 24. Kg2 {[%clk 0:01:01]}  Qxf5 {[%clk 0:00:44]} 25. f4 {[%clk 0:00:53]}  R5e6 {[%clk 0:00:40]} 26. Kh2 {[%clk 0:00:48]}  h6 {[%clk 0:00:28]} 27. Qg4 {[%clk 0:00:46]}  Rf8 {[%clk 0:00:28]} 28. b4 {[%clk 0:00:33]}  b6 {[%clk 0:00:28]} 29. a4 {[%clk 0:00:33]}  Rg6 {[%clk 0:00:21]} 30. Qxf5 {[%clk 0:00:20]}  Rxf5 {[%clk 0:00:22]} 31. d4 {[%clk 0:00:15]}  Re6 {[%clk 0:00:18]} 32. Ng3 {[%clk 0:00:16]}  Rf7 {[%clk 0:00:17]} 33. Rf3 {[%clk 0:00:16]}  Re1 {[%clk 0:00:15]} 34. f5 {[%clk 0:00:07]}  Rfe7 {[%clk 0:00:10]} 35. f6 {[%clk 0:00:06]}  Rf7 {[%clk 0:00:10]} 36. Nh5 {[%clk 0:00:04]}  g6 {[%clk 0:00:09]} 37. Ng3 {[%clk 0:00:04]}  Re6 {[%clk 0:00:09]} 38. d5 {[%clk 0:00:03]}  Rexf6 {[%clk 0:00:09]} 39. Re3 {[%clk 0:00:04]}  Rf2+ {[%clk 0:00:08]} 40. Kg1 {[%clk 0:00:04]}  R2f3 {[%clk 0:00:08]} 41. Re8+ {[%clk 0:00:05]}  Rf8 {[%clk 0:00:09]} 42. Rxf8+ {[%clk 0:00:03]}  Kxf8 {[%clk 0:00:09]} 43. Ne4 {[%clk 0:00:04]}  Re3 {[%clk 0:00:08]} 44. Nf6 {[%clk 0:00:03]}  Rxc3 {[%clk 0:00:07]} 45. Kf2 {[%clk 0:00:03]}  Rxh3 {[%clk 0:00:07]} 46. Nd7+ {[%clk 0:00:02]}  Ke7 {[%clk 0:00:06]} 47. Nb8 {[%clk 0:00:03]}  Kd6 {[%clk 0:00:06]} 48. Nc6 {[%clk 0:00:02]}  Kxd5 {[%clk 0:00:05]} 49. Nxa7 {[%clk 0:00:03]}  Rb3 {[%clk 0:00:05]} 50. a5 {[%clk 0:00:02]}  bxa5 {[%clk 0:00:04]} 51. bxa5 {[%clk 0:00:02]}  Rb7 {[%clk 0:00:04]} 52. Nc8 {[%clk 0:00:00]}  Rb8 {[%clk 0:00:04]} 0-1


[Site "https://www.chess.com"]

[Event "Titled Tuesday Blitz July 25 Early 2023"]
[White "Pakleza, Zbigniew"]
[Black "Martic, Ivan"]
[WhiteFideId "1119290"]
[BlackFideId "929301"]
[WhiteElo "2781"]
[BlackElo "2652"]
[Result "1-0"]
[Round "10"]
[TimeControl "180+2"]
[Date "2023.07.25"]
[WhiteClock "0:00:49"]
[BlackClock "0:00:52"]
[Board "33"]

1. d4 {[%clk 0:03:00]}  d5 {[%clk 0:02:57]} 2. Nf3 {[%clk 0:03:00]}  Nf6 {[%clk 0:02:56]} 3. Bf4 {[%clk 0:03:01]}  c5 {[%clk 0:02:56]} 4. c3 {[%clk 0:03:01]}  Nc6 {[%clk 0:02:54]} 5. Nbd2 {[%clk 0:03:02]}  cxd4 {[%clk 0:02:50]} 6. cxd4 {[%clk 0:03:03]}  Qb6 {[%clk 0:02:50]} 7. e3 {[%clk 0:03:03]}  Bf5 {[%clk 0:02:48]} 8. Qb3 {[%clk 0:02:59]}  Qxb3 {[%clk 0:02:25]} 9. Nxb3 {[%clk 0:03:00]}  e6 {[%clk 0:02:10]} 10. Bb5 {[%clk 0:02:55]}  Bb4+ {[%clk 0:02:09]} 11. Ke2 {[%clk 0:02:55]}  O-O {[%clk 0:02:07]} 12. Bxc6 {[%clk 0:02:50]}  bxc6 {[%clk 0:02:08]} 13. Rhc1 {[%clk 0:02:50]}  Rfc8 {[%clk 0:02:06]} 14. Ne5 {[%clk 0:02:44]}  Nh5 {[%clk 0:01:45]} 15. Nxc6 {[%clk 0:02:36]}  Nxf4+ {[%clk 0:01:43]} 16. exf4 {[%clk 0:02:36]}  Bd6 {[%clk 0:01:43]} 17. g3 {[%clk 0:02:21]}  h5 {[%clk 0:01:40]} 18. Rc3 {[%clk 0:02:17]}  f6 {[%clk 0:01:32]} 19. Rac1 {[%clk 0:02:15]}  Re8 {[%clk 0:01:32]} 20. h4 {[%clk 0:02:01]}  Kh7 {[%clk 0:01:26]} 21. Nba5 {[%clk 0:01:33]}  Kh6 {[%clk 0:01:24]} 22. b4 {[%clk 0:01:25]}  g5 {[%clk 0:01:24]} 23. hxg5+ {[%clk 0:01:23]}  fxg5 {[%clk 0:01:25]} 24. fxg5+ {[%clk 0:01:24]}  Kxg5 {[%clk 0:01:24]} 25. Nb7 {[%clk 0:01:20]}  Bf8 {[%clk 0:01:19]} 26. Nc5 {[%clk 0:01:15]}  Bg4+ {[%clk 0:01:14]} 27. Ke3 {[%clk 0:01:11]}  Kf6 {[%clk 0:01:12]} 28. Nd7+ {[%clk 0:01:05]}  Kg6 {[%clk 0:01:09]} 29. Nce5+ {[%clk 0:01:04]}  Kh7 {[%clk 0:01:02]} 30. Nf6+ {[%clk 0:00:59]}  Kh6 {[%clk 0:01:02]} 31. Nxe8 {[%clk 0:00:51]}  Rxe8 {[%clk 0:01:02]} 32. Nxg4+ {[%clk 0:00:50]}  hxg4 {[%clk 0:01:02]} 33. Rc8 {[%clk 0:00:51]}  Rxc8 {[%clk 0:01:00]} 34. Rxc8 {[%clk 0:00:52]}  Bxb4 {[%clk 0:01:00]} 35. Rc6 {[%clk 0:00:49]}  Kg5 {[%clk 0:01:00]} 36. Rxe6 {[%clk 0:00:50]}  Ba3 {[%clk 0:01:00]} 37. Re5+ {[%clk 0:00:49]}  Kf6 {[%clk 0:00:59]} 38. Rxd5 {[%clk 0:00:50]}  Bc1+ {[%clk 0:00:52]} 39. Ke4 {[%clk 0:00:49]} 1-0


[Site "https://www.chess.com"]

[Event "Titled Tuesday Blitz July 25 Early 2023"]
[White "Garv Gaur"]
[Black "Schnaider, Ilan"]
[WhiteFideId "45030839"]
[BlackFideId "169013"]
[WhiteElo "2578"]
[BlackElo "2759"]
[Result "0-1"]
[Round "10"]
[TimeControl "180+2"]
[Date "2023.07.25"]
[WhiteClock "0:01:11"]
[BlackClock "0:01:36"]
[Board "37"]

1. Nf3 {[%clk 0:02:58]}  Nf6 {[%clk 0:02:59]} 2. e3 {[%clk 0:02:53]}  d5 {[%clk 0:02:58]} 3. b3 {[%clk 0:02:47]}  c5 {[%clk 0:02:52]} 4. Bb2 {[%clk 0:02:44]}  Nc6 {[%clk 0:02:53]} 5. Bb5 {[%clk 0:02:44]}  Qc7 {[%clk 0:02:50]} 6. O-O {[%clk 0:02:43]}  e6 {[%clk 0:02:47]} 7. d3 {[%clk 0:02:43]}  Bd7 {[%clk 0:02:47]} 8. Nbd2 {[%clk 0:02:42]}  Bd6 {[%clk 0:02:45]} 9. Qe2 {[%clk 0:02:42]}  a6 {[%clk 0:02:42]} 10. Bxc6 {[%clk 0:02:42]}  Bxc6 {[%clk 0:02:42]} 11. e4 {[%clk 0:02:43]}  Nd7 {[%clk 0:02:25]} 12. Rfe1 {[%clk 0:02:21]}  O-O {[%clk 0:02:17]} 13. e5 {[%clk 0:02:07]}  Be7 {[%clk 0:02:18]} 14. c3 {[%clk 0:02:03]}  h6 {[%clk 0:02:11]} 15. d4 {[%clk 0:02:02]}  cxd4 {[%clk 0:02:12]} 16. cxd4 {[%clk 0:02:02]}  Bb5 {[%clk 0:02:10]} 17. Qe3 {[%clk 0:02:01]}  Qc2 {[%clk 0:02:10]} 18. Rab1 {[%clk 0:01:55]}  Rac8 {[%clk 0:02:09]} 19. Rec1 {[%clk 0:01:46]}  Qf5 {[%clk 0:01:39]} 20. Ne1 {[%clk 0:01:27]}  Bg5 {[%clk 0:01:38]} 21. f4 {[%clk 0:01:12]}  Bxf4 {[%clk 0:01:36]} 22. Qf2 {[%clk 0:01:11]}  Bxh2+ {[%clk 0:01:36]} 0-1


[Site "https://www.chess.com"]

[Event "Titled Tuesday Blitz July 25 Early 2023"]
[White "Skvortsov, Andrei"]
[Black "Karamsetty, Jeevan"]
[WhiteFideId "24108600"]
[BlackFideId "2025337"]
[WhiteElo "2741"]
[BlackElo "2519"]
[Result "1-0"]
[Round "10"]
[TimeControl "180+2"]
[Date "2023.07.25"]
[WhiteClock "0:00:12"]
[BlackClock "0:00:00"]
[Board "39"]

1. e4 {[%clk 0:02:37]}  g6 {[%clk 0:02:59]} 2. g3 {[%clk 0:02:36]}  Bg7 {[%clk 0:02:59]} 3. Bg2 {[%clk 0:02:37]}  d6 {[%clk 0:02:59]} 4. Ne2 {[%clk 0:02:38]}  Nf6 {[%clk 0:02:58]} 5. O-O {[%clk 0:02:38]}  O-O {[%clk 0:02:58]} 6. d4 {[%clk 0:02:38]}  e5 {[%clk 0:02:57]} 7. h3 {[%clk 0:02:39]}  exd4 {[%clk 0:02:56]} 8. Nxd4 {[%clk 0:02:39]}  Re8 {[%clk 0:02:54]} 9. Nc3 {[%clk 0:02:39]}  Nfd7 {[%clk 0:02:47]} 10. Nb3 {[%clk 0:02:36]}  Nc6 {[%clk 0:02:44]} 11. Nd5 {[%clk 0:02:31]}  b6 {[%clk 0:02:38]} 12. c3 {[%clk 0:02:20]}  Bb7 {[%clk 0:02:32]} 13. h4 {[%clk 0:02:20]}  Nc5 {[%clk 0:02:26]} 14. Bg5 {[%clk 0:02:16]}  Qd7 {[%clk 0:02:25]} 15. Nxc5 {[%clk 0:02:16]}  bxc5 {[%clk 0:02:23]} 16. Qd2 {[%clk 0:02:04]}  Ne5 {[%clk 0:02:15]} 17. Nf6+ {[%clk 0:02:02]}  Bxf6 {[%clk 0:02:14]} 18. Bxf6 {[%clk 0:02:02]}  Qe6 {[%clk 0:02:11]} 19. Bg5 {[%clk 0:02:02]}  Nc4 {[%clk 0:02:08]} 20. Qf4 {[%clk 0:02:00]}  Rab8 {[%clk 0:01:17]} 21. b3 {[%clk 0:01:58]}  Ne5 {[%clk 0:01:16]} 22. Rad1 {[%clk 0:01:51]}  Ba6 {[%clk 0:01:15]} 23. c4 {[%clk 0:01:51]}  Bb7 {[%clk 0:01:14]} 24. Bf6 {[%clk 0:01:37]}  Bc8 {[%clk 0:00:53]} 25. f3 {[%clk 0:01:35]}  h5 {[%clk 0:00:36]} 26. Rd5 {[%clk 0:01:23]}  Nd7 {[%clk 0:00:32]} 27. Bc3 {[%clk 0:01:20]}  f6 {[%clk 0:00:30]} 28. Qh6 {[%clk 0:01:18]}  Qf7 {[%clk 0:00:27]} 29. f4 {[%clk 0:01:10]}  Qg7 {[%clk 0:00:16]} 30. Qxg7+ {[%clk 0:01:05]}  Kxg7 {[%clk 0:00:17]} 31. e5 {[%clk 0:00:57]}  Bb7 {[%clk 0:00:13]} 32. exf6+ {[%clk 0:00:57]}  Nxf6 {[%clk 0:00:12]} 33. Rdd1 {[%clk 0:00:55]}  Bxg2 {[%clk 0:00:11]} 34. Kxg2 {[%clk 0:00:55]}  Re2+ {[%clk 0:00:12]} 35. Rf2 {[%clk 0:00:54]}  Rbe8 {[%clk 0:00:13]} 36. Rd2 {[%clk 0:00:54]}  R2e3 {[%clk 0:00:12]} 37. Bb2 {[%clk 0:00:51]}  Kf7 {[%clk 0:00:13]} 38. Rf3 {[%clk 0:00:51]}  Re1 {[%clk 0:00:12]} 39. Bc3 {[%clk 0:00:49]}  Ng4 {[%clk 0:00:12]} 40. a4 {[%clk 0:00:33]}  R8e2+ {[%clk 0:00:11]} 41. Rxe2 {[%clk 0:00:33]}  Rxe2+ {[%clk 0:00:11]} 42. Kg1 {[%clk 0:00:34]}  Ke6 {[%clk 0:00:09]} 43. Kf1 {[%clk 0:00:28]}  Rc2 {[%clk 0:00:08]} 44. Ke1 {[%clk 0:00:28]}  Kf5 {[%clk 0:00:07]} 45. Kd1 {[%clk 0:00:28]}  Rg2 {[%clk 0:00:07]} 46. Ba5 {[%clk 0:00:25]}  Ke4 {[%clk 0:00:07]} 47. Rc3 {[%clk 0:00:26]}  Ne3+ {[%clk 0:00:06]} 48. Kc1 {[%clk 0:00:26]}  Rg1+ {[%clk 0:00:05]} 49. Kd2 {[%clk 0:00:26]}  Rg2+ {[%clk 0:00:05]} 50. Kc1 {[%clk 0:00:23]}  Kd4 {[%clk 0:00:05]} 51. Kb1 {[%clk 0:00:20]}  Rg1+ {[%clk 0:00:05]} 52. Ka2 {[%clk 0:00:19]}  Nd1 {[%clk 0:00:05]} 53. Rc1 {[%clk 0:00:18]}  Rg2+ {[%clk 0:00:05]} 54. Kb1 {[%clk 0:00:17]}  Ne3 {[%clk 0:00:04]} 55. Bc3+ {[%clk 0:00:17]}  Ke4 {[%clk 0:00:05]} 56. Ba5 {[%clk 0:00:18]}  Rxg3 {[%clk 0:00:05]} 57. Bxc7 {[%clk 0:00:17]}  Nf5 {[%clk 0:00:05]} 58. Kb2 {[%clk 0:00:16]}  Kxf4 {[%clk 0:00:06]} 59. Rd1 {[%clk 0:00:16]}  Ke5 {[%clk 0:00:06]} 60. Rd5+ {[%clk 0:00:16]}  Ke6 {[%clk 0:00:06]} 61. Bb8 {[%clk 0:00:17]}  Rg2+ {[%clk 0:00:05]} 62. Kc3 {[%clk 0:00:15]}  Rg3+ {[%clk 0:00:05]} 63. Kb2 {[%clk 0:00:15]}  Rg4 {[%clk 0:00:05]} 64. Bxa7 {[%clk 0:00:15]}  Rxh4 {[%clk 0:00:04]} 65. a5 {[%clk 0:00:14]}  Nd4 {[%clk 0:00:05]} 66. a6 {[%clk 0:00:13]}  Rh2+ {[%clk 0:00:04]} 67. Kc3 {[%clk 0:00:13]}  Ne2+ {[%clk 0:00:03]} 68. Kc2 {[%clk 0:00:11]}  Nf4+ {[%clk 0:00:03]} 69. Rd2 {[%clk 0:00:11]}  Rxd2+ {[%clk 0:00:02]} 70. Kxd2 {[%clk 0:00:12]}  Kd7 {[%clk 0:00:02]} 71. Bxc5 {[%clk 0:00:12]}  Kc8 {[%clk 0:00:02]} 72. Bxd6 {[%clk 0:00:12]}  Ne6 {[%clk 0:00:03]} 73. b4 {[%clk 0:00:12]}  Nd8 {[%clk 0:00:04]} 74. b5 {[%clk 0:00:12]}  Kd7 {[%clk 0:00:00]} 75. a7 {[%clk 0:00:12]} 1-0


[Site "https://www.chess.com"]

[Event "Titled Tuesday Blitz July 25 Early 2023"]
[White "Zhigalko, Sergei"]
[Black "Shuvalova, Polina"]
[WhiteFideId "13502956"]
[BlackFideId "24171760"]
[WhiteElo "2865"]
[BlackElo "2663"]
[Result "1-0"]
[Round "10"]
[TimeControl "180+2"]
[Date "2023.07.25"]
[WhiteClock "0:00:15"]
[BlackClock "0:00:00"]
[Board "42"]

1. e4 {[%clk 0:03:00]}  c6 {[%clk 0:02:57]} 2. d4 {[%clk 0:03:01]}  d5 {[%clk 0:02:58]} 3. e5 {[%clk 0:03:01]}  Bf5 {[%clk 0:02:58]} 4. Nf3 {[%clk 0:03:02]}  e6 {[%clk 0:02:58]} 5. Be2 {[%clk 0:03:02]}  Ne7 {[%clk 0:02:58]} 6. O-O {[%clk 0:03:02]}  Nd7 {[%clk 0:02:59]} 7. Nbd2 {[%clk 0:03:02]}  Ng6 {[%clk 0:02:59]} 8. Nb3 {[%clk 0:03:01]}  f6 {[%clk 0:02:59]} 9. Ne1 {[%clk 0:03:01]}  h5 {[%clk 0:02:58]} 10. f4 {[%clk 0:03:00]}  h4 {[%clk 0:02:56]} 11. Be3 {[%clk 0:02:50]}  Qc7 {[%clk 0:02:48]} 12. a4 {[%clk 0:02:31]}  a6 {[%clk 0:02:46]} 13. a5 {[%clk 0:02:30]}  c5 {[%clk 0:02:38]} 14. Bg4 {[%clk 0:02:24]}  Ne7 {[%clk 0:02:30]} 15. Nxc5 {[%clk 0:02:00]}  Nxc5 {[%clk 0:02:28]} 16. dxc5 {[%clk 0:02:01]}  Bxg4 {[%clk 0:02:21]} 17. Qxg4 {[%clk 0:02:01]}  Nf5 {[%clk 0:02:22]} 18. Qg6+ {[%clk 0:01:53]}  Qf7 {[%clk 0:01:58]} 19. Qxf7+ {[%clk 0:01:53]}  Kxf7 {[%clk 0:01:59]} 20. Bf2 {[%clk 0:01:53]}  g6 {[%clk 0:01:50]} 21. exf6 {[%clk 0:01:49]}  Kxf6 {[%clk 0:01:38]} 22. Nf3 {[%clk 0:01:38]}  Rc8 {[%clk 0:01:33]} 23. b4 {[%clk 0:01:38]}  Bg7 {[%clk 0:01:26]} 24. Rae1 {[%clk 0:01:36]}  Rce8 {[%clk 0:00:45]} 25. Re2 {[%clk 0:01:33]}  Bh6 {[%clk 0:00:34]} 26. g4 {[%clk 0:01:30]}  hxg3 {[%clk 0:00:34]} 27. hxg3 {[%clk 0:01:31]}  Kf7 {[%clk 0:00:32]} 28. Rfe1 {[%clk 0:01:25]}  Re7 {[%clk 0:00:20]} 29. Kg2 {[%clk 0:00:52]}  Rhe8 {[%clk 0:00:18]} 30. g4 {[%clk 0:00:43]}  Bxf4 {[%clk 0:00:16]} 31. gxf5 {[%clk 0:00:44]}  gxf5 {[%clk 0:00:16]} 32. Ne5+ {[%clk 0:00:42]}  Kf6 {[%clk 0:00:13]} 33. Bh4+ {[%clk 0:00:35]}  Bg5 {[%clk 0:00:12]} 34. Bxg5+ {[%clk 0:00:35]}  Kxg5 {[%clk 0:00:13]} 35. Kf3 {[%clk 0:00:36]}  Rh7 {[%clk 0:00:08]} 36. Rg2+ {[%clk 0:00:32]}  Kf6 {[%clk 0:00:08]} 37. Rg6+ {[%clk 0:00:32]}  Ke7 {[%clk 0:00:09]} 38. Reg1 {[%clk 0:00:25]}  Reh8 {[%clk 0:00:04]} 39. R1g3 {[%clk 0:00:21]}  Rh1 {[%clk 0:00:02]} 40. Rg7+ {[%clk 0:00:21]}  Ke8 {[%clk 0:00:01]} 41. Rxb7 {[%clk 0:00:17]}  Rf1+ {[%clk 0:00:00]} 42. Ke2 {[%clk 0:00:15]} 1-0


[Site "https://www.chess.com"]

[Event "Titled Tuesday Blitz July 25 Early 2023"]
[White "Kazakouski, Valery"]
[Black "Haug, Havard"]
[WhiteFideId "13507443"]
[BlackFideId "1547887"]
[WhiteElo "2844"]
[BlackElo "2657"]
[Result "0-1"]
[Round "10"]
[TimeControl "180+2"]
[Date "2023.07.25"]
[WhiteClock "0:00:00"]
[BlackClock "0:00:02"]
[Board "43"]

1. Nf3 {[%clk 0:02:56]}  Nf6 {[%clk 0:02:56]} 2. c4 {[%clk 0:02:55]}  e6 {[%clk 0:02:54]} 3. g3 {[%clk 0:02:55]}  d5 {[%clk 0:02:53]} 4. b3 {[%clk 0:02:55]}  c5 {[%clk 0:02:53]} 5. e3 {[%clk 0:02:55]}  Be7 {[%clk 0:02:53]} 6. Bg2 {[%clk 0:02:55]}  O-O {[%clk 0:02:53]} 7. O-O {[%clk 0:02:56]}  Nc6 {[%clk 0:02:54]} 8. Bb2 {[%clk 0:02:56]}  Ne4 {[%clk 0:02:39]} 9. cxd5 {[%clk 0:02:51]}  exd5 {[%clk 0:02:38]} 10. d4 {[%clk 0:02:51]}  Bf6 {[%clk 0:02:32]} 11. Nc3 {[%clk 0:02:50]}  Re8 {[%clk 0:02:27]} 12. Ne2 {[%clk 0:02:31]}  Bf5 {[%clk 0:02:23]} 13. Qc1 {[%clk 0:02:27]}  cxd4 {[%clk 0:02:13]} 14. Nexd4 {[%clk 0:02:27]}  Bg6 {[%clk 0:02:10]} 15. Nxc6 {[%clk 0:02:19]}  bxc6 {[%clk 0:02:11]} 16. Bxf6 {[%clk 0:02:03]}  Qxf6 {[%clk 0:02:12]} 17. Nd4 {[%clk 0:02:04]}  Rac8 {[%clk 0:02:08]} 18. b4 {[%clk 0:01:56]}  c5 {[%clk 0:01:53]} 19. bxc5 {[%clk 0:01:57]}  Nxc5 {[%clk 0:01:46]} 20. Qa3 {[%clk 0:01:57]}  Be4 {[%clk 0:01:30]} 21. Qxa7 {[%clk 0:01:47]}  Nd3 {[%clk 0:01:29]} 22. Rad1 {[%clk 0:01:37]}  Ne5 {[%clk 0:01:22]} 23. Qa4 {[%clk 0:00:54]}  Ra8 {[%clk 0:01:14]} 24. Qb3 {[%clk 0:00:53]}  Qa6 {[%clk 0:01:11]} 25. Rd2 {[%clk 0:00:49]}  Nc4 {[%clk 0:00:52]} 26. Re2 {[%clk 0:00:47]}  Reb8 {[%clk 0:00:47]} 27. Qc3 {[%clk 0:00:47]}  Ne5 {[%clk 0:00:43]} 28. Ra1 {[%clk 0:00:36]}  Qf6 {[%clk 0:00:36]} 29. Qe1 {[%clk 0:00:23]}  g6 {[%clk 0:00:29]} 30. a4 {[%clk 0:00:23]}  Ra6 {[%clk 0:00:23]} 31. a5 {[%clk 0:00:23]}  Rba8 {[%clk 0:00:23]} 32. Rea2 {[%clk 0:00:23]}  Nc4 {[%clk 0:00:20]} 33. Qc3 {[%clk 0:00:18]}  Ne5 {[%clk 0:00:10]} 34. Qe1 {[%clk 0:00:12]}  Nc4 {[%clk 0:00:09]} 35. h4 {[%clk 0:00:10]}  h5 {[%clk 0:00:09]} 36. Qb4 {[%clk 0:00:09]}  Ne5 {[%clk 0:00:07]} 37. Qb5 {[%clk 0:00:05]}  Kg7 {[%clk 0:00:02]} 38. Qf1 {[%clk 0:00:04]}  Bd3 {[%clk 0:00:01]} 39. Qd1 {[%clk 0:00:04]}  Be4 {[%clk 0:00:02]} 40. f3 {[%clk 0:00:04]}  Bf5 {[%clk 0:00:02]} 41. Bf1 {[%clk 0:00:04]}  R6a7 {[%clk 0:00:02]} 42. a6 {[%clk 0:00:04]}  Be6 {[%clk 0:00:01]} 43. Ra5 {[%clk 0:00:04]}  Nc4 {[%clk 0:00:01]} 44. Bxc4 {[%clk 0:00:05]}  dxc4 {[%clk 0:00:02]} 45. Qd2 {[%clk 0:00:05]}  Qe7 {[%clk 0:00:02]} 46. Qc3 {[%clk 0:00:05]}  Qf6 {[%clk 0:00:03]} 47. R1a3 {[%clk 0:00:04]}  Rb8 {[%clk 0:00:02]} 48. Nxe6+ {[%clk 0:00:04]}  fxe6 {[%clk 0:00:03]} 49. Qxf6+ {[%clk 0:00:04]}  Kxf6 {[%clk 0:00:04]} 50. Rc5 {[%clk 0:00:03]}  Rb6 {[%clk 0:00:04]} 51. Rxc4 {[%clk 0:00:03]}  Rbxa6 {[%clk 0:00:04]} 52. Rxa6 {[%clk 0:00:03]}  Rxa6 {[%clk 0:00:05]} 53. Rc2 {[%clk 0:00:03]}  Ra3 {[%clk 0:00:05]} 54. Kf2 {[%clk 0:00:04]}  Ra8 {[%clk 0:00:06]} 55. Re2 {[%clk 0:00:05]}  Ra6 {[%clk 0:00:06]} 56. Kg2 {[%clk 0:00:04]}  e5 {[%clk 0:00:06]} 57. e4 {[%clk 0:00:03]}  Rb6 {[%clk 0:00:07]} 58. Kf2 {[%clk 0:00:02]}  Ra6 {[%clk 0:00:07]} 59. Rd2 {[%clk 0:00:03]}  Rb6 {[%clk 0:00:07]} 60. Ke3 {[%clk 0:00:02]}  Rb3+ {[%clk 0:00:08]} 61. Rd3 {[%clk 0:00:03]}  Rb6 {[%clk 0:00:08]} 62. f4 {[%clk 0:00:03]}  Ra6 {[%clk 0:00:09]} 63. Kf3 {[%clk 0:00:03]}  Rb6 {[%clk 0:00:08]} 64. fxe5+ {[%clk 0:00:02]}  Kxe5 {[%clk 0:00:09]} 65. Rd5+ {[%clk 0:00:02]}  Kf6 {[%clk 0:00:08]} 66. Kf4 {[%clk 0:00:03]}  Ke6 {[%clk 0:00:02]} 67. Rg5 {[%clk 0:00:03]}  Kf6 {[%clk 0:00:02]} 68. Rd5 {[%clk 0:00:03]}  Ke6 {[%clk 0:00:03]} 69. Kg5 {[%clk 0:00:04]}  Rb3 {[%clk 0:00:01]} 70. Kxg6 {[%clk 0:00:02]}  Rxg3+ {[%clk 0:00:02]} 71. Rg5 {[%clk 0:00:00]}  Re3 {[%clk 0:00:02]} 0-1


[Site "https://www.chess.com"]